Cogmind - Beta 13 @@@ ROGUE MODE // 2024.04.29 @ 17:06:30 Player: Aaron Result: Destroyed by S-27 Virus with Autogun Performance ------------- Evolutions (6) 3000 Regions Visited (11) 2200 Robots Destroyed (63) 315 Value Destroyed (1690) 1690 Prototype IDs (18) 360 Alien Tech Used (0) 0 Bonus (1712) 1712 TOTAL SCORE: 9277 Bonus ------- High Alert Combat Kills 12 Entered Garrisons 200 Used RIF Installer 1000 Entered DSFs 500 Cogmind --------- Core Integrity 0/1150 Matter 48/300 Energy 75/100 System Corruption 0% Temperature Cool (0) Movement Flying (35) Location -4/Factory Parts ------- > --- POWER (2) -------- (None) > --- PROPULSION (5) --- VTOL Module > --- UTILITY (8) ------ (None) > --- WEAPON (4) ------- (None) > --- INVENTORY (5) ---- Light Antimatter Reactor Field Propulsion Array Dispersion Rifle Advanced Datajack Peak State ------------ > --- POWER ------------ Enhanced Nuclear Core > --- PROPULSION ------- Improved VTOL Module Xenon Bombardment Thruster Xenon Bombardment Thruster > --- UTILITY ---------- Advanced Weight Redist. System Advanced Sensor Array Improved Transmission Jammer Advanced Reaction Control System System Shield System Shield Relay Coupler [Swarmer] Relay Coupler [Specialist] > --- WEAPON ----------- Micro-nuke Launcher Micro-nuke Launcher Micro-nuke Launcher Improved Remote Datajack > --- INVENTORY -------- Light Antimatter Reactor Advanced ECM Suite [Rating: 80] Favorites ----------- Power Light Ion Engine Engine Light Ion Engine Power Core Light Nuclear Core Reactor Antimatter Reactor Propulsion Xenon Bombardment Thruster Treads Light Treads Wheel Compact Wheel Hover Unit Hover Unit Flight Unit Xenon Bombardment Thruster Utility Sensor Array Device Sensor Array Processor Improved Signal Interpreter Hackware System Shield Protection Improved Propulsion Shielding Weapon Light Assault Rifle Energy Gun Arc Projector Energy Cannon Heavy Ion Cannon Ballistic Gun Light Assault Rifle Ballistic Cannon Flak Cannon Launcher Rocket Launcher Special Weapon Remote Datajack Impact Weapon Great Maul Slashing Weapon Greatsword Piercing Weapon Spear Special Melee Weapon Datajack Build | -11 -10 -9 -9 -8 -7 -7 -7 -6 -5 -5 -4 ------- Run | Yrd Mat Mat Min Mat Fac Gar Fac Fac Fac DSF Fac Slots Evolved 12 | . . 2 . 2 2 . . 2 2 . 2 Power 1 | . . . . . . . . . 1 . . Propulsion 3 | . . 1 . . 1 . . . 1 . . Utility 6 | . . . . 1 1 . . 2 . . 2 Weapon 2 | . . 1 . 1 . . . . . . . Parts Attached 134 | 8 20 11 3 11 9 8 29 10 3 7 15 Power 16 | 2 2 . 1 1 . 2 3 2 1 1 1 Engine 5 | 2 2 . 1 . . . . . . . . Core 10 | . . . . 1 . 2 3 2 1 1 . Reactor 1 | . . . . . . . . . . . 1 Propulsion 37 | 2 11 2 2 2 3 3 8 . 1 . 3 Treads 5 | 2 3 . . . . . . . . . . Leg . | . . . . . . . . . . . . Wheel 2 | . 2 . . . . . . . . . . Hover 4 | . 4 . . . . . . . . . . Flight 26 | . 2 2 2 2 3 3 8 . 1 . 3 Utility 42 | 2 5 5 . 2 2 1 7 5 1 5 7 Device 27 | 2 2 4 . 2 1 . 4 4 . 3 5 Storage . | . . . . . . . . . . . . Processor 4 | . 2 1 . . 1 . . . . . . Hackware 9 | . . . . . . 1 2 1 1 2 2 Protection 2 | . 1 . . . . . 1 . . . . Artifact . | . . . . . . . . . . . . Weapon 39 | 2 2 4 . 6 4 2 11 3 . 1 4 Energy Gun 3 | . . . . 1 . . 1 1 . . . Energy Cannon 1 | . . . . . . . 1 . . . . Ballistic Gun 12 | 2 2 1 . 2 1 2 1 . . . 1 Ballistic Cannon 1 | . . . . . . . 1 . . . . Launcher 4 | . . . . 1 . . . . . . 3 Special Weapon 7 | . . 2 . . . . 3 1 . 1 . Impact Weapon 1 | . . . . 1 . . . . . . . Slashing Weapon 3 | . . . . . . . 3 . . . . Piercing Weapon 1 | . . . . . 1 . . . . . . Special Melee Weapon 6 | . . 1 . 1 2 . 1 1 . . . Unidentified Prototypes 3 | . . . . . . . 1 1 . . 1 Corrupted Parts 2 | . 1 . . 1 . . . . . . . System Corruption 4 | . 3 . . 1 . . . . . . . Parts Lost 37 | . 3 1 1 5 . 8 7 . . 5 7 Power 3 | . . . . 1 . 1 . . . 1 . Propulsion 14 | . 2 . 1 1 . 3 1 . . 1 5 Utility 7 | . 1 . . . . 1 3 . . . 2 Weapon 13 | . . 1 . 3 . 3 3 . . 3 . Highest Loss Streak 7 | . 2 1 2 5 . 7 4 . . 4 2 To Critical Strikes . | . . . . . . . . . . . . Average Slot Usage (%) 86 | . 99 98 99 89 98 93 82 82 94 76 47 Engine 4 | . 14 11 11 3 . . . . . . . Core 4 | . . . . 5 7 7 7 6 11 5 3 Treads 1 | . 6 . . . . . . . . . . Hover 4 | . 17 . . . . . . . . . . Flight 20 | . 2 32 32 26 30 29 29 26 29 23 10 Device 13 | . 14 18 11 19 23 16 6 22 23 15 10 Processor 6 | . 12 3 11 7 5 7 6 . . . . Hackware 5 | . . . . . . 1 11 1 8 18 17 Ballistic Gun 11 | . 28 14 11 13 14 14 . . . . . Special Weapon 2 | . . 7 11 3 . . 2 5 5 3 3 Slashing Weapon 1 | . . . . . . . 4 6 5 1 . Piercing Weapon 1 | . . . . . 2 7 1 . . . . Special Melee Weapon 3 | . . 11 11 4 7 6 3 4 5 4 . Naked Turns 41 | . . . . . . . . . . . 41 Heaviest Build 50 | 9 9 10 9 16 17 15 23 23 28 26 50 Greatest Support 40 | 40 40 12 12 18 24 19 24 23 37 28 26 Greatest Overweight (x) 1 | . 1 . . . . . . . . . 1 Average Overweight (x) . | . . . . . . . . . . . . Largest Inventory Capacity 5 | 5 5 5 5 5 5 5 5 5 5 5 5 Average Capacity 5 | 5 5 5 5 5 5 5 5 5 5 5 5 Most Carried 5 | 1 5 5 5 4 5 5 5 5 4 4 5 Average Carried 3 | . 2 3 4 3 4 4 4 4 3 3 4 Final Capacity 5 | 5 5 5 5 5 5 5 5 5 5 5 5 Final Carried 5 | 1 5 4 5 4 5 5 5 5 3 4 5 Class Distribution -------------------- 23% | Scavenger-Mutant 17% | Bothacker-Sprinter 12% | Sprinter 11% | Mutant 8% | Scavenger-Sprinter 8% | Hacker-Sprinter 6% | Scout 5% | Scavenger-Scout Dominant Class ---------------- Scavenger-Mutant | -10/Materials Scavenger-Mutant | -9/Materials Sprinter | -9/Mines Scout | -8/Materials Scavenger-Scout | -7/Factory Scavenger-Sprinter | -7/Garrison Bothacker-Sprinter | -7/Factory Sprinter | -6/Factory Hacker-Sprinter | -5/Factory Hacker-Sprinter | -5/DSF Hacker-Sprinter | -4/Factory Resources | -11 -10 -9 -9 -8 -7 -7 -7 -6 -5 -5 -4 ----------- Run | Yrd Mat Mat Min Mat Fac Gar Fac Fac Fac DSF Fac Matter Collected 1871 | 312 359 31 97 235 120 129 453 59 . . 76 Remotely . | . . . . . . . . . . . . Salvage Created 2146 | 145 701 11 44 130 210 126 720 59 . . . Parts 161 | 9 51 5 7 8 9 10 54 8 . . . Haulers Intercepted 9 | . 2 . . 2 1 . 4 . . . . Recyclers Shooed 1 | . . . . . . . 1 . . . . Parts Field Recycled . | . . . . . . . . . . . . Retrieved Matter . | . . . . . . . . . . . . Parts Self-Destructed . | . . . . . . . . . . . . Prevented . | . . . . . . . . . . . . Kills | -11 -10 -9 -9 -8 -7 -7 -7 -6 -5 -5 -4 ------- Run | Yrd Mat Mat Min Mat Fac Gar Fac Fac Fac DSF Fac Combat Hostiles Destroyed 27 | . 9 . 3 3 . 4 8 . . . . Melee 9 | . . . . . . 1 8 . . . . Guns 18 | . 9 . 3 3 . 3 . . . . . Classes Destroyed 11 | 2 6 . . . 1 1 1 . . . . Worker 5 | . 4 . . . 1 . . . . . . Builder 6 | . 2 . . . . . 3 1 . . . Tunneler 7 | 3 1 1 . . . . . 2 . . . Hauler 9 | . 2 . . 2 1 . 4 . . . . Recycler 5 | 1 2 . . . 1 . 1 . . . . Mechanic 1 | . . . . . 1 . . . . . . Watcher 3 | . 2 . . . 1 . . . . . . Swarmer 12 | . 3 . 3 3 . 3 . . . . . Grunt 12 | . 6 . . . . . 6 . . . . Duelist 1 | . . . . . . 1 . . . . . Programmer 2 | . . . . . . . 2 . . . . Best Kill Streak 6 | 3 6 1 3 3 3 2 4 1 . . . Combat Bots Only 4 | . 4 . 3 3 . 2 4 . . . . Max Kills in Single Turn 1 | 1 1 1 1 1 1 1 1 1 . . . Gunslinging . | . . . . . . . . . . . . Exploded . | . . . . . . . . . . . . Melee 1 | . . . . . . 1 1 . . . . Uniques/NPCs Destroyed . | . . . . . . . . . . . . Combat | -11 -10 -9 -9 -8 -7 -7 -7 -6 -5 -5 -4 -------- Run | Yrd Mat Mat Min Mat Fac Gar Fac Fac Fac DSF Fac Hostile Shots Fired 624 | . 50 15 3 40 7 144 87 24 . 17 237 Missed 318 | . 19 7 . 9 5 71 49 15 . 10 133 Damage Taken 5089 | . 464 104 27 408 10 870 1011 82 . 272 1841 Core 2076 | . 179 23 . 81 . 339 151 20 . 125 1158 Absorbed by Shields 30 | . . . . . . . . . . 30 . Redirected to Shielding 36 | . . . . . . . . 36 . . . Regen/Repaired (Parts) 146 | . . 5 . 7 . . 134 . . . . Core Remaining (%) 74 | 100 28 . 94 85 . . 30 97 . 87 . Volleys Fired 203 | 16 82 15 3 24 5 15 35 3 . . 5 Largest 3 | 2 2 2 1 2 2 2 1 1 . . 3 Hottest 147 | 40 40 123 23 43 40 46 55 5 . . 147 Shots Fired 348 | 32 163 18 3 47 10 30 35 3 . . 7 Gun 299 | 32 163 9 3 47 10 30 5 . . . . Cannon 1 | . . . . . . . 1 . . . . Launcher 3 | . . . . . . . . . . . 3 Special 45 | . . 9 . . . . 29 3 . . 4 Kinetic 295 | 32 163 9 3 47 10 30 1 . . . . Thermal 9 | . . 9 . . . . . . . . . Explosive 3 | . . . . . . . . . . . 3 Electromagnetic 5 | . . . . . . . 5 . . . . Robot Hit Streak 15 | 6 12 2 3 8 10 15 5 1 . . 4 Robot Miss Streak 5 | 1 5 3 . 4 2 2 3 1 . . . Penetration Max . | . . . . . . . . . . . . Secondary Targets 3 | . 2 . . 1 . . . . . . . Max Gunslinging Chain 1 | . 1 . . 1 . . . . . . . Shots Hit Robots 306 | 23 104 10 3 38 16 31 66 6 . 6 3 Core Hits 102 | 7 46 1 3 8 5 14 13 2 . . 3 Critical Kills 2 | . . . . 1 1 . . . . . . Critical Parts Destroyed 4 | . . . . 3 1 . . . . . . Critical Strikes 12 | . . . . 4 2 . 6 . . . . Destroy 3 | . . . . 3 . . . . . . . Smash 3 | . . . . 1 2 . . . . . . Sever 6 | . . . . . . . 6 . . . . Melee Attacks 210 | . . 6 . 21 15 26 123 7 1 11 . Impact 20 | . . . . 12 8 . . . . . . Slashing 86 | . . . . . . . 79 6 1 . . Piercing 39 | . . . . . 2 20 17 . . . . Sneak Attacks 50 | . . 6 . 6 9 . 22 4 . 3 . Combat Hostiles 3 | . . . . . . . . . . 3 . Follow-up Attacks . | . . . . . . . . . . . . Damage Inflicted 4822 | 192 918 66 45 545 442 418 1759 332 . . 105 Guns 1921 | 192 918 66 45 340 43 277 40 . . . . Cannons 12 | . . . . . . . 12 . . . . Explosions 105 | . . . . . . . . . . . 105 Melee 2712 | . . . . 205 399 141 1635 332 . . . Ramming 72 | . . . . . . . 72 . . . . Kinetic 1893 | 192 918 66 45 340 43 277 12 . . . . Thermal . | . . . . . . . . . . . . Explosive 105 | . . . . . . . . . . . 105 Electromagnetic 40 | . . . . . . . 40 . . . . Impact 544 | . . . . 205 339 . . . . . . Slashing 1967 | . . . . . . . 1635 332 . . . Piercing 201 | . . . . . 60 141 . . . . . Highest Corruption 16 | . 6 . . 1 . 1 16 . . . . Average Corruption 2 | . 4 . . 1 . 1 2 . . . . Corruption Purged . | . . . . . . . . . . . . Corruption Blocked . | . . . . . . . . . . . . Effects 30 | . 10 . . 1 . 1 18 . . . . Message Errors 6 | . 2 . . . . . 4 . . . . Matter Fused 8 | . 2 . . . . 1 5 . . . . Heat Flow Errors 3 | . 2 . . . . . 1 . . . . Energy Discharges 6 | . 2 . . . . . 4 . . . . Parts Rejected 2 | . . . . . . . 2 . . . . Data Loss (minor) 3 | . 1 . . . . . 2 . . . . Data Loss (major) 1 | . . . . 1 . . . . . . . Weapon Failures 1 | . 1 . . . . . . . . . . Overload Shots . | . . . . . . . . . . . . Overflow Damage 487 | . . . . 13 172 . 241 61 . . . Projectiles . | . . . . . . . . . . . . Explosions . | . . . . . . . . . . . . Melee 487 | . . . . 13 172 . 241 61 . . . Knockbacks 2 | . . . . . 1 . 1 . . . . Impact 1 | . . . . . 1 . . . . . . Kinetic 1 | . . . . . . . 1 . . . . Secondary . | . . . . . . . . . . . . Self-Inflicted Damage 72 | . . . . . . . 72 . . . . Shots . | . . . . . . . . . . . . Rammed . | . . . . . . . . . . . . Targets Rammed . | . . . . . . . . . . . . Kicked . | . . . . . . . . . . . . Crushed . | . . . . . . . . . . . . Highest Temperature 191 | . 191 73 3 14 1 26 136 . 48 . 66 Average Temperature 26 | . 29 25 2 6 1 8 30 . 22 . 33 Received Heat Transfer 921 | . 201 45 . 171 . 213 171 . . . 120 Siege Activations . | . . . . . . . . . . . . Robots Corrupted . | . . . . . . . . . . . . Combat Hostiles . | . . . . . . . . . . . . Parts Fried 2 | . . . . . 2 . . . . . . Impact Corruptions 6 | . . . . 1 5 . . . . . . Robots Melted . | . . . . . . . . . . . . Combat Hostiles . | . . . . . . . . . . . . Parts Melted . | . . . . . . . . . . . . Heat Transferred . | . . . . . . . . . . . . Parts Sabotaged . | . . . . . . . . . . . . Parts Stolen . | . . . . . . . . . . . . Parts Stripped . | . . . . . . . . . . . . Power Chain Reactions . | . . . . . . . . . . . . Alert | -11 -10 -9 -9 -8 -7 -7 -7 -6 -5 -5 -4 ------- Run | Yrd Mat Mat Min Mat Fac Gar Fac Fac Fac DSF Fac Peak Influence 582 | 20 151 181 130 176 124 447 403 304 150 105 582 Initial 203 | . 13 63 70 50 . 88 203 163 148 105 25 Average 144 | 9 54 87 129 97 68 291 160 207 149 70 317 Maximum Alert Level 2 | . . . . . . 2 2 1 . . 2 Low Security (%) 71 | 100 100 100 100 100 100 26 48 56 100 100 32 Level 1 21 | . . . . . . 57 51 43 . . 22 Level 2 6 | . . . . . . 15 . . . . 44 Level 3 . | . . . . . . . . . . . . Level 4 . | . . . . . . . . . . . . Level 5 . | . . . . . . . . . . . . High Security . | . . . . . . . . . . . . Max Security . | . . . . . . . . . . . . Squads Dispatched 36 | . 5 3 . 5 3 . 11 1 . 1 7 Investigation 24 | . 3 2 . 4 . . 7 1 . . 7 Extermination 1 | . . . . . . . 1 . . . . Reinforcement 10 | . 2 1 . . 3 . 3 . . 1 . Assault . | . . . . . . . . . . . . Garrison 1 | . . . . 1 . . . . . . . Intercept . | . . . . . . . . . . . . Searches Triggered 1 | . . . . . . . . . . . 1 Construction Impeded 1 | . . . . . . . 1 . . . . Haulers Reinforced 2 | . . . . . . . 2 . . . . Active Scanning Responses . | . . . . . . . . . . . . Cargo Convoy Interrupts . | . . . . . . . . . . . . Stealth | -11 -10 -9 -9 -8 -7 -7 -7 -6 -5 -5 -4 --------- Run | Yrd Mat Mat Min Mat Fac Gar Fac Fac Fac DSF Fac Distress Signals 6 | . . 1 . . . . 2 . . . 3 Communications Jammed 6 | . . . . . . . . . . 3 3 Distress Signals 3 | . . . . . . . . . . . 3 Times Spotted 170 | . 15 11 2 18 6 13 39 5 . 4 57 Peak Tracking Total 15 | . 3 7 2 7 5 3 8 5 . 2 15 Tactical Retreats 38 | . 1 1 . 5 1 2 13 1 . 1 13 Traps | -11 -10 -9 -9 -8 -7 -7 -7 -6 -5 -5 -4 ------- Run | Yrd Mat Mat Min Mat Fac Gar Fac Fac Fac DSF Fac Traps Triggered 7 | . 2 . . 1 . . 2 . . 2 . Indirectly . | . . . . . . . . . . . . Trap Hack Attempts 26 | . . . . . . 15 . . . 11 . Triggered . | . . . . . . . . . . . . Disarmed 2 | . . . . . . 1 . . . 1 . Reprogrammed . | . . . . . . . . . . . . Reused . | . . . . . . . . . . . . Traps Extracted . | . . . . . . . . . . . . Installed . | . . . . . . . . . . . . Triggered . | . . . . . . . . . . . . Machines | -11 -10 -9 -9 -8 -7 -7 -7 -6 -5 -5 -4 ---------- Run | Yrd Mat Mat Min Mat Fac Gar Fac Fac Fac DSF Fac Machines Disabled 5 | . . . . . . 3 . . . . 2 Max in Single Turn 2 | . . . . . . 1 . . . . 2 Garrison Access 2 | . . . . . . . 1 . . . 1 Garrison Relay 3 | . . . . . . 3 . . . . . Phase Generator 1 | . . . . . . 1 . . . . . Machines Repaired . | . . . . . . . . . . . . Machines Dismantled . | . . . . . . . . . . . . Machines Sabotaged . | . . . . . . . . . . . . Overloaded Fab Kills . | . . . . . . . . . . . . Hacking | -11 -10 -9 -9 -8 -7 -7 -7 -6 -5 -5 -4 --------- Run | Yrd Mat Mat Min Mat Fac Gar Fac Fac Fac DSF Fac Machines Accessed 56 | . 4 5 . 7 7 2 14 4 2 . 11 Terminals 33 | . 4 3 . 4 4 2 7 1 2 . 6 Fabricators 4 | . . . . . . . 2 1 . . 1 Repair Stations 3 | . . 1 . 1 . . 1 . . . . Recycling Units 9 | . . . . 2 1 . 3 1 . . 2 Scanalyzers 4 | . . 1 . . 1 . . 1 . . 1 Garrison Access 3 | . . . . . 1 . 1 . . . 1 Total Hacks 180 | . 15 18 . 32 15 3 40 12 7 . 38 Successful 94 | . 6 11 . 24 6 2 23 4 1 . 17 Failed 86 | . 9 7 . 8 9 1 17 8 6 . 21 Catastrophic 17 | . . . . 1 4 1 6 . . . 5 Database Lockouts . | . . . . . . . . . . . . Manual 105 | . 8 11 . 21 13 . 22 5 3 . 22 Terminals 127 | . 15 11 . 27 10 3 23 3 7 . 28 Fabricators 8 | . . . . . . . 4 1 . . 3 Repair Stations 9 | . . 4 . 2 . . 3 . . . . Recycling Units 20 | . . . . 3 2 . 8 2 . . 5 Scanalyzers 12 | . . 3 . . 2 . . 6 . . 1 Garrison Access 4 | . . . . . 1 . 2 . . . 1 Terminal Hacks 23 | . 2 . . 10 1 2 3 . 1 . 4 Robot Analysis 1 | . . . . 1 . . . . . . . Prototype ID Bank 7 | . 2 . . 3 . . 1 . . . 1 Open DSF 1 | . . . . . . . . . 1 . . Emergency Access Points 2 | . . . . 1 . 1 . . . . . Terminal Index 2 | . . . . . 1 . . . . . 1 Recycling Unit Index 1 | . . . . . . . . . . . 1 Unreport Threat 3 | . . . . 1 . . 2 . . . . Locate Traps 2 | . . . . 1 . . . . . . 1 Maintenance Status 1 | . . . . 1 . . . . . . . Hauler Manifests 1 | . . . . 1 . . . . . . . Zone Layout 1 | . . . . 1 . . . . . . . Garrison Registry 1 | . . . . . . 1 . . . . . Fabricator Hacks 5 | . . . . . . . 3 1 . . 1 Network Status 2 | . . . . . . . 1 1 . . . Load Schematic 1 | . . . . . . . 1 . . . . Build 2 | . . . . . . . 1 . . . 1 Repair Station Hacks 8 | . . 3 . 2 . . 3 . . . . Scan Component 5 | . . 2 . 1 . . 2 . . . . Repair 3 | . . 1 . 1 . . 1 . . . . Recycling Unit Hacks 5 | . . . . . . . 3 . . . 2 Recycle Component 1 | . . . . . . . . . . . 1 Report Inventory 3 | . . . . . . . 2 . . . 1 Retrieve Components 1 | . . . . . . . 1 . . . . Scanalyzer 7 | . . 3 . . 2 . . 2 . . . Insert Component 4 | . . 1 . . 1 . . 2 . . . Analyze 3 | . . 2 . . 1 . . . . . . Garrison Access Hacks 4 | . . . . . 1 . 2 . . . 1 Unlock Access 1 | . . . . . 1 . . . . . . Seal Access 2 | . . . . . . . 1 . . . 1 Coupler Status 1 | . . . . . . . 1 . . . . Unauthorized Hacks 42 | . 4 5 . 12 2 . 9 1 . . 9 Terminals 36 | . 4 5 . 9 2 . 6 1 . . 9 Track 12 | . . 2 . 4 1 . 2 . . . 3 Assimilate 3 | . . 1 . 1 . . . . . . 1 Botnet 21 | . 4 2 . 4 1 . 4 1 . . 5 Fabricators . | . . . . . . . . . . . . Repair Stations . | . . . . . . . . . . . . Recycling Units 6 | . . . . 3 . . 3 . . . . Monitor 2 | . . . . 1 . . 1 . . . . Reject 4 | . . . . 2 . . 2 . . . . Scanalyzers . | . . . . . . . . . . . . Garrison Access . | . . . . . . . . . . . . Data Cores Recovered 1 | . . . . 1 . . . . . . . Used 1 | . . . . 1 . . . . . . . Hacking Detections 49 | . 4 5 . 5 7 2 11 3 2 . 10 Full Trace Events 23 | . 4 1 . 2 . 1 7 1 . . 7 Feedback Events 2 | . . . . . . 1 1 . . . . Corruption 2 | . . . . . . 1 1 . . . . Feedback Blocked . | . . . . . . . . . . . . Robot Schematics Acquired . | . . . . . . . . . . . . Robots Built . | . . . . . . . . . . . . Authchips . | . . . . . . . . . . . . Time . | . . . . . . . . . . . . Total Robot Build Rating . | . . . . . . . . . . . . Part Schematics Acquired 2 | . . 1 . . 1 . . . . . . Parts Built 3 | . . . . . . . 1 . . . 2 Authchips . | . . . . . . . . . . . . Time 120 | . . . . . . . 51 . . . 69 Total Part Build Rating 19 | . . . . . . . 1 . . . 18 Parts Repaired 3 | . . 1 . 1 . . 1 . . . . Time 102 | . . 26 . 32 . . 44 . . . . Parts Recycled 1 | . . . . . . . . . . . 1 Recycled Matter . | . . . . . . . . . . . . Retrieved Matter . | . . . . . . . . . . . . Retrieved Components 3 | . . . . . . . 3 . . . . Parts Scanalyzed 4 | . . 1 . . 1 . . 2 . . . Part Schematics Acquired 2 | . . 1 . . 1 . . . . . . Parts Damaged 1 | . . . . . . . . 1 . . . Bothacking | -11 -10 -9 -9 -8 -7 -7 -7 -6 -5 -5 -4 ------------ Run | Yrd Mat Mat Min Mat Fac Gar Fac Fac Fac DSF Fac Used RIF Installer 2 | . . . . . . 2 . . . . . Hotswap 1 | . . . . . . 1 . . . . . Robots Hacked 39 | . . 5 . 4 2 3 18 3 . 2 2 Non-combat 31 | . . 5 . 4 2 . 15 3 . . 2 Combat 8 | . . . . . . 3 3 . . 2 . Robot Hacks Applied 63 | . . 6 . 4 5 4 36 3 . 2 3 parse_system 7 | . . 2 . 1 . 1 . 1 . 1 1 no_distress 21 | . . 4 . 3 2 . 10 2 . . . generate_echo 1 | . . . . . . . 1 . . . . start_evac 1 | . . . . . . . 1 . . . . ignore_repairs 1 | . . . . . . . 1 . . . . map_walls 4 | . . . . . . . 4 . . . . randomize_corridors 1 | . . . . . . . 1 . . . . map_earth 1 | . . . . . . . 1 . . . . find_fabricator 4 | . . . . . 1 . 2 . . . 1 find_dsf 3 | . . . . . 1 . 1 . . . 1 find_recycling 2 | . . . . . . . 2 . . . . ignore_parts 1 | . . . . . . . 1 . . . . find_station 1 | . . . . . 1 . . . . . . map_route 1 | . . . . . . . 1 . . . . mark_security 2 | . . . . . . . 2 . . . . relay_feed 1 | . . . . . . . 1 . . . . link_fov 2 | . . . . . . . 2 . . . . overload_power 2 | . . . . . . . 2 . . . . reboot_system 1 | . . . . . . . 1 . . . . go_dormant 2 | . . . . . . 1 1 . . . . overwrite_iff 2 | . . . . . . 2 . . . . . streamctrl_low 1 | . . . . . . . 1 . . . . formatsys_high 1 | . . . . . . . . . . 1 . Relay Couplers Released 13 | . . . . . . 12 1 . . . . Machine Destruction 13 | . . . . . . 12 1 . . . . Attached 5 | . . . . . . 1 2 . . 2 . Fabnet Peak Effective % . | . . . . . . . . . . . . Robots Rewired . | . . . . . . . . . . . . Allies Hacked . | . . . . . . . . . . . . Hacks Repelled . | . . . . . . . . . . . . Allies | -11 -10 -9 -9 -8 -7 -7 -7 -6 -5 -5 -4 -------- Run | Yrd Mat Mat Min Mat Fac Gar Fac Fac Fac DSF Fac Total Allies 6 | . . 1 . . . 2 1 . . 1 1 Largest Group 1 | . . 1 . . . 1 1 . . 1 1 Highest-Rated Group 43 | . . 10 . . . 16 10 . . 43 26 Highest-Rated Ally 43 | . . 10 . . . 16 10 . . 43 26 Total Orders 2 | . . 1 . . . . . . . 1 . ROAM 1 | . . 1 . . . . . . . . . AID 1 | . . . . . . . . . . 1 . Ally Attacks 10 | . . . . . . 7 . . . 3 . Total Damage 178 | . . . . . . 70 . . . 108 . Kills . | . . . . . . . . . . . . Allies Corrupted . | . . . . . . . . . . . . Allies Melted . | . . . . . . . . . . . . Intel | -11 -10 -9 -9 -8 -7 -7 -7 -6 -5 -5 -4 ------- Run | Yrd Mat Mat Min Mat Fac Gar Fac Fac Fac DSF Fac Robot Analysis Total 1 | . . . . 1 . . . . . . . Derelict Logs Recovered 1 | . . . 1 . . . . . . . . Drone Launches . | . . . . . . . . . . . . Drone Recoveries . | . . . . . . . . . . . . Exploration | -11 -10 -9 -9 -8 -7 -7 -7 -6 -5 -5 -4 ------------- Run | Yrd Mat Mat Min Mat Fac Gar Fac Fac Fac DSF Fac Turns Passed 4836 | 146 1167 261 173 434 224 450 1180 171 37 81 512 Spaces Moved 6019 | 59 549 355 258 511 423 377 1627 370 113 83 1294 Core 82 | 3 2 . . . . . . . . . 77 Treads 199 | 56 143 . . . . . . . . . . Legs . | . . . . . . . . . . . . Wheels 40 | . 40 . . . . . . . . . . Hover 169 | . 169 . . . . . . . . . . Flight 5529 | . 195 355 258 511 423 377 1627 370 113 83 1217 Fastest Speed 26 | 50 37 34 32 32 29 29 28 29 26 26 32 Average Speed 37 | 154 81 34 32 32 29 29 30 29 26 28 35 Slowest Speed 160 | 160 160 34 34 34 29 34 34 29 26 32 108 Overloaded Moves . | . . . . . . . . . . . . Propulsion Burnouts . | . . . . . . . . . . . . Robots Hopped 8 | . . . . . 1 . . . . . 7 Cave-ins Triggered 1 | . . . . . . . 1 . . . . Exploration Rate (%) 39 | 5 76 32 67 42 13 56 44 14 4 89 33 Regions Visited 11 Branch Regions 1 Pre-discovered Areas . | . . . . . . . . . . . . Known Exits Taken 4 | . . 1 1 . 1 . . . 1 . . Unknown Exits Taken 5 | 1 1 . . 1 . . 1 1 . . . Scrap Searched 2 | . . . 2 . . . . . . . . Spaces Dug 110 | . . 8 . 8 5 . 61 2 1 . 25 Terrain Destroyed 111 | . . 8 . 8 5 . 62 2 1 . 25 Melee 77 | . . . . 8 5 . 61 2 1 . . Projectile 8 | . . 8 . . . . . . . . . AOE 25 | . . . . . . . . . . . 25 Terrain Rammed 1 | . . . . . . . 1 . . . . Walls Destroyed 1 | . . . . . . . 1 . . . . Machines Disabled . | . . . . . . . . . . . . Actions | -11 -10 -9 -9 -8 -7 -7 -7 -6 -5 -5 -4 --------- Run | Yrd Mat Mat Min Mat Fac Gar Fac Fac Fac DSF Fac Total 7994 | 84 1136 455 345 713 496 662 2097 417 117 137 1335 Wait 1271 | 2 464 62 76 142 35 205 248 20 . 12 5 Move 5994 | 58 548 354 257 510 421 376 1626 369 112 82 1281 Hop 7 | . . . . . 1 . . . . . 6 Pick Up 41 | . 5 2 3 1 5 8 6 2 . . 9 Fast Attach 79 | 7 18 5 1 7 1 1 17 7 1 3 11 Attach 24 | . 1 3 1 4 3 3 4 . 2 . 3 Detach 9 | . . . . 2 . . 2 1 . 1 3 Swap 31 | 1 1 3 1 . 5 4 8 3 . 4 1 Drop 74 | . 17 5 3 2 5 9 14 5 1 2 11 Fire 203 | 16 82 15 3 24 5 15 35 3 . . 5 Melee 210 | . . 6 . 21 15 26 123 7 1 11 . Ram 1 | . . . . . . . 1 . . . . Kick . | . . . . . . . . . . . . Crush . | . . . . . . . . . . . . Escape Stasis 24 | . . . . . . . 13 . . 11 . Rewire . | . . . . . . . . . . . . Trap 26 | . . . . . . 15 . . . 11 . Miscellaneous . | . . . . . . . . . . . . Route ------- -11/Scrapyard -10/Materials (discovered 2 exits: *Mat / [*Min]) -9/Materials -9/Mines -8/Materials -7/Factory (discovered 2 exits: *Low / Gar) -7/Garrison (discovered 3 exits: *Fac x3) -7/Factory (discovered 2 exits: *Fac / *Low) -6/Factory (discovered 2 exits: *Fac x2) -5/Factory -5/DSF -4/Factory History --------- Turn | Location | Event 39 | -11/Scrapyard | Discovered new exit (range 14) 147 | -11/Scrapyard | Entered Materials 570 | -10/Materials | Build established: Scavenger-Mutant 877 | -10/Materials | Discovered new exit (range 11) 909 | -10/Materials | Core integrity fell below 50% 1197 | -10/Materials | Discovered new exit (range 15) 1314 | -10/Materials | Entered another Materials area 1314 | -9/Materials | Evolved 2 slots: Propulsion x1, Weapon x1 1356 | -9/Materials | Repaired Flight Unit 1558 | -9/Materials | Discovered new exit (range 7) 1572 | -9/Materials | Identified exit to Mines 1575 | -9/Materials | Entered Mines 1734 | -9/Mines | Learned Materials emergency access door positions 1738 | -9/Mines | Discovered new exit (range 12) 1741 | -9/Mines | Identified exit to Materials 1748 | -9/Mines | Entered Materials 1748 | -8/Materials | Evolved 2 slots: Utility x1, Weapon x1 1838 | -8/Materials | Garrison activated, responded to threat 1845 | -8/Materials | Met 7R-MNS 1857 | -8/Materials | Repaired VTOL Module 1950 | -8/Materials | Discovered new exit (range 13) 1956 | -8/Materials | Lost 5 parts (1p1n3w) 2182 | -8/Materials | Entered Factory 2182 | -7/Factory | Evolved 2 slots: Propulsion x1, Utility x1 2183 | -7/Factory | Caught up to 7R-MNS 2291 | -7/Factory | Discovered new exit (range 4) 2291 | -7/Factory | Identified exit to Lower Caves 2406 | -7/Factory | Identified exit to Garrison 2406 | -7/Factory | Entered Garrison 2479 | -7/Garrison | Discovered new exit (range 37) 2479 | -7/Garrison | Discovered new exit (range 69) 2479 | -7/Garrison | Discovered new exit (range 63) 2484 | -7/Garrison | Triggered checkpoint 2514 | -7/Garrison | Installed Relay Interface Framework 2526 | -7/Garrison | Garrison Relay disabled 2545 | -7/Garrison | Garrison Relay disabled 2570 | -7/Garrison | Triggered checkpoint 2832 | -7/Garrison | Phase Generator disabled 2837 | -7/Garrison | Expanded RIF knowledge: Hotswap 2855 | -7/Garrison | Identified exit to Factory 2856 | -7/Garrison | Entered Factory 2869 | -7/Factory | Lost 7 parts (1p2n1u3w) 2924 | -7/Factory | Fabricated Datajack? 3211 | -7/Factory | Build established: Bothacker-Sprinter 3548 | -7/Factory | Core integrity fell below 50% 3674 | -7/Factory | Discovered exit to Lower Caves (range 13) 3773 | -7/Factory | Repaired Greatsword 3889 | -7/Factory | Crushed by falling debris 3889 | -7/Factory | System corruption reached 10% 3920 | -7/Factory | Lost 4 parts (3u1w) 3934 | -7/Factory | Discovered new exit (range 10) 4036 | -7/Factory | Entered another Factory area 4036 | -6/Factory | Evolved 2 slots: Utility x2 4137 | -6/Factory | Discovered new exit (range 9) 4194 | -6/Factory | Discovered new exit (range 11) 4207 | -6/Factory | Entered another Factory area 4207 | -5/Factory | Evolved 2 slots: Power x1, Propulsion x1 4244 | -5/Factory | Identified exit to DSF 4244 | -5/Factory | Entered DSF 4276 | -5/DSF | Additional patrols routed to DSF 4283 | -5/DSF | Discovered new exit (range 16) 4314 | -5/DSF | Lost 4 parts (1p1n2w) 4325 | -5/DSF | Entered Factory 4325 | -4/Factory | Evolved 2 slots: Utility x2 4503 | -4/Factory | Build established: Hacker-Sprinter 4656 | -4/Factory | Fabricated Quantum Reactor? 4718 | -4/Factory | Released all parts (9) 4825 | -4/Factory | Search patrols dispatched 4829 | -4/Factory | Core integrity fell below 50% 4834 | -4/Factory | Core integrity fell below 20% 4837 | -4/Factory | Destroyed by S-27 Virus with Autogun Last Messages --------------- multiple search patrols dispatched. Penetrated by Slug. Slug penetrates Wall. Slug penetrates T-07 Excavator. T-07 Excavator destroyed. K-01 Serf collects debris. Acquired 28 matter. K-01 Serf destroyed. Penetrated by Slug. Slug penetrates Wall. K-01 Serf collects debris. Acquired VTOL Module. Slug penetrates Door. Slug penetrates Wall. Penetrated by Slug. Acquired 30 matter. Penetrated by Slug. Acquired VTOL Module. Slug penetrates Wall. VTOL Module destroyed. Map ----- +----------------------------------------------------+ | ????????????###########+## #?????????? ?# | | ???????????????????# ### ###?????????? # | | ???????????????????# " " #?# #????????????? # | | ???????????????????# " " #?# #??????????????/ | | ???????????????????# " " #?# #??????????????# | | ???????????????????# " " #?# #??????????????# | | ???????????????????# " " #?# #??????????????# | | ???????????????????# " " #?# #??????????????# | | ?????############### " " #?# #??????????????# | | ?????# ! ## " " #?# #??????????????# | | ?????# """ """ #??" " #?# #??????????????# | | ?????# """ """ !#??? ??# #???????????#### | | ?????#! """ """ #???? !??#+#########???# | | ?????# #?????#??# #???# | | ?????# """ """ #????????# ##### | | ?????# """ """ ] #????????# + | | ?????# """ """ #????????# ######## | | ?????#! #????????# #??????# | | ?????# """Y""" #????????# #??????# | | ?????# """"""" #????????# #??????# | | ?????# #????????# #??????# | | ############+###################+############ | | ps h h | | ss s * h t | | =%= h | | k @ ! | | ! [ ^ | | ##################;#############w#############+### | | ???????????????? ^ ??????# #??# | | ?????????????? ????# #??# | | ?????????????# #???# #??# """ """ | | ?????????????# ]]]#???# #??# """ """ | | ?????????????# ]]]#???# """ """ #??# """ """ | | ?????????????# ]]]#???# """ """ #??# | | ?????????????# = #???# """ """ #??# """ """ | | ?????????????# #???# #??# """ """ | | ?????????????###########???###########??# """ """ | | ??????????????????????????????????????????? ? | | ???????????????????????????????????????????? ? | | ???????????????????????????????????????????? ? | | ?????????????????????????????????????############# | | ?????????????????????????????????????# | | ?????????????????????????????????????# | | ?????????????????????????????????????# ! ! | | ?????????????????????????????????????# | | ?????????????????????????????????????# """" """" | | ?????????????????????????????????????# """" """" | | ?????????????????????????????????????# """" """" | | ?????????????????????????????????????# """" """" | | ?????????????????????????????????????# """" """" | +----------------------------------------------------+ Best States ------------- Heat Dissipation 43 Energy Generation 27 Energy Capacity 350 Matter Stores 300 Matter Capacity 300 Sight Range 16 Robot Scan Range 16 Terrain Scan Range 16 Terrain Scan Density 85 Jamming Range 14 Cloak Strength 2 Additional Mass Support 9 Armor Coverage 80 Propulsion Shielding 66 Evasion (%) 75 Recoil Reduction 2 Offensive Hacking 10 Defensive Hacking 30 Relay Coupler Types 2 Relay Coupler Value 45 Item Schematics ----------------- Datajack | -9/Materials | Scanalyzed Imp. Flight Unit | -7/Factory | Scanalyzed Robot Schematics ------------------ None Fabricated ------------ Datajack | x1 | -7/Factory Quantum Reactor | x2 | -4/Factory | Preloaded Alien Tech Used ----------------- None Achievements -------------- Assimilation Complete Error 47 Factory Defaults Challenges ------------ None Game ------ Seed FireSignalAutocannon Manual? 0 Play Time 03:24:07 Cumulative 36.2 hours Start 2024.04.28 @ 17:39:24 End 2024.04.29 @ 17:06:30 Sessions 3 Manual Loads 0 Difficulty Rogue Special Mode None Game No. 21 Rogue 21 Adventurer 0 Explorer 0 Win Type - Total 0 Types 0/0/0/0/0/0/0/0/0 Lore% 21 Gallery% 33 Achievement% 29 Wizard Run 0 Options --------- Layout 1 ASCII 0 Keyboard 0 Movement Mouse Keybinds 0 Fullscreen 2 Font 32/SmallcapsGlow Map View 50x35 Zoom Use 0% Tactical HUD 0 Map Filters NONE Filters NONE Steam 1 RUN: 3ddff7ab-4d82-4b92-9ae6-f52e8f40e617